bitfinex/quotes_SOLUSD_20220117
["timestamp","ask_amount","ask_price","bid_price","bid_amount"]
[1642418193961,1.85527263,143.41,143.33,106.53215203]
[1642418194162,1.85527263,143.41,143.34,24.5036]
[1642418194763,1.85527263,143.4,143.34,24.5036]
[1642418197898,22.46730383,143.39,143.34,24.5036]
[1642418198796,1.85527263,143.4,143.34,24.5036]
[1642418199997,50.42410663,143.41,143.34,24.5036]
[1642418201302,1.85527263,143.41,143.34,24.5036]
[1642418201700,23.4648,143.43,143.34,24.5036]
[1642418201701,1.85527263,143.4,143.34,24.5036]
[1642418201900,1.85527263,143.4,143.34,24.7636]
[1642418202700,1.85527263,143.42,143.35,69.74]
[1642418203302,1.85527263,143.42,143.34,24.5036]
[1642418205001,1.85527263,143.41,143.34,24.5036]
[1642418205404,1.73904425,143.4,143.29,69.74]
[1642418205602,10.12,143.39,143.3,23.993]
[1642418206202,16.064406,143.38,143.3,23.993]
[1642418208405,17.91967863,143.38,143.3,23.993]
[1642418213211,1.85527263,143.38,143.3,23.993]
[1642418213612,1.85527263,143.38,143.3,93.733]
[1642418214312,1.85527263,143.38,143.31,10.37]
[1642418214511,1.85527263,143.38,143.32,69.74]
[1642418214912,1.85527263,143.38,143.32,70.0]
[1642418215113,5.81527502,143.41,143.32,70.0]
[1642418215314,1.85527263,143.41,143.34,46.32562996]
[1642418215515,1.85527263,143.41,143.34,116.06562996]
[1642418223922,1.85527263,143.41,143.34,46.32562996]
[1642418224122,31.9284026,143.41,143.33,22.8956]
[1642418224321,31.9284026,143.41,143.29,12.10456827]
[1642418224322,42.0484026,143.41,143.29,1.98456827]
[1642418224521,24.597,143.4,143.29,1.98456827]
[1642418224722,24.597,143.4,143.28,24.53086827]
[1642418224921,26.33604425,143.4,143.28,24.53086827]
[1642418225123,10.12,143.39,143.28,24.53086827]
[1642418225320,10.12,143.39,143.29,106.29383505]
[1642418225522,1.85527263,143.38,143.29,106.29383505]
[1642418225723,1.85527263,143.38,143.3,24.7106]
[1642418225925,12.32067263,143.38,143.3,24.7106]
[1642418227723,1.85527263,143.37,143.3,24.7106]
[1642418228324,12.32067263,143.38,143.3,24.7106]
[1642418235264,1.85527263,143.38,143.3,24.7106]
[1642418237668,1.85527263,143.38,143.3,99.9956]
[1642418240569,1.85527263,143.39,143.3,99.9956]
[1642418241171,1.85527263,143.39,143.3,100.2556]
[1642418241773,1.85527263,143.39,143.31,10.12]
[1642418241970,26.45227263,143.4,143.32,24.515]
[1642418242872,26.45227263,143.4,143.33,69.74]
[1642418243072,26.45227263,143.4,143.34,35.03132825]
[1642418243272,24.597,143.4,143.34,35.03132825]
[1642418244674,1.85527263,143.41,143.34,104.77132825]
[1642418245075,5.31071883,143.44,143.35,75.0]
[1642418245273,3.96000239,143.44,143.35,85.63]
[1642418245475,3.96000239,143.44,143.36,69.74]
[1642418245676,5.95663244,143.46,143.37,10.12]
[1642418245874,5.95663244,143.46,143.38,37.69942118]
[1642418246074,5.95663244,143.46,143.39,10.12]
[1642418246274,5.95663244,143.46,143.39,17.091]
[1642418246475,5.95663244,143.46,143.41,43.29602387]
[1642418246677,23.3854,143.51,143.41,53.41602387]
[1642418246877,29.06933244,143.54,143.41,77.71352387]
[1642418247080,12.19364425,143.53,143.41,88.42732387]
[1642418248082,12.19364425,143.53,143.42,69.74]
[1642418248275,16.16006204,143.53,143.42,77.382]
[1642418248876,50.09345937,143.53,143.42,77.382]
[1642418249276,46.12704158,143.53,143.42,77.382]
[1642418249478,46.12704158,143.53,143.42,69.74]
[1642418249876,46.12704158,143.53,143.41,88.16732387]
[1642418250277,1.73904425,143.52,143.41,77.71352387]
[1642418250476,12.19434425,143.52,143.42,69.74]
[1642418253282,12.19434425,143.52,143.41,77.71352387]
[1642418254083,36.88984425,143.52,143.41,77.71352387]
[1642418255980,36.88984425,143.52,143.51,0.49932249]
[1642418256379,12.19434425,143.52,143.51,0.49932249]
[1642418256779,1.73904425,143.52,143.51,0.49932249]
[1642418258881,68.49964425,143.54,143.51,0.49932249]
[1642418259083,66.7606,143.54,143.51,0.49932249]
[1642418260282,68.49964425,143.54,143.51,0.49932249]
[1642418260784,45.38694425,143.54,143.51,0.49932249]
[1642418262817,43.6479,143.54,143.51,0.49932249]
[1642418263784,28.31781696,143.53,143.51,0.49932249]
[1642418263983,38.77241696,143.53,143.51,0.49932249]
[1642418264185,10.4546,143.53,143.51,0.49932249]
[1642418265987,49.25540672,143.53,143.51,0.49932249]
[1642418269992,10.4546,143.53,143.51,0.49932249]
[1642418271724,34.96023044,143.52,143.51,0.49932249]
[1642418272622,10.4546,143.53,143.51,2.249e-05]
[1642418272823,20.5746,143.53,143.51,2.249e-05]
[1642418275126,57.9283,143.54,143.51,2.249e-05]
[1642418275127,23.074,143.54,143.51,2.249e-05]
[1642418275623,10.4532,143.55,143.51,2.249e-05]
[1642418277226,3.97396157,143.54,143.51,2.249e-05]
[1642418277429,14.42796157,143.54,143.51,2.249e-05]
[1642418278028,10.454,143.54,143.51,2.249e-05]
[1642418278429,10.454,143.54,143.52,3.03210003]
[1642418278628,10.4524,143.56,143.52,6.0643]
[1642418279031,20.5724,143.56,143.52,6.0643]
[1642418280233,3.97261062,143.55,143.52,6.0643]
[1642418280632,3.97261062,143.55,143.51,36.49783958]
[1642418280831,3.97261062,143.55,143.51,2.249e-05]
[1642418281032,10.4535,143.54,143.51,2.249e-05]
[1642418283234,41.62632429,143.53,143.47,59.63428606]
[1642418284041,10.4535,143.54,143.47,59.63428606]
[1642418286439,3.97598553,143.53,143.47,24.26263387]
[1642418286641,14.43048553,143.53,143.47,24.26263387]
[1642418287543,35.74943722,143.52,143.47,24.26263387]
[1642418288143,10.4552,143.52,143.47,24.26263387]
[1642418289545,10.4552,143.52,143.45,37.74028648]
[1642418291447,26.27642208,143.51,143.45,37.74028648]
[1642418292647,10.4552,143.52,143.45,37.74028648]
[1642418293247,22.7777,143.53,143.45,37.74028648]
[1642418293649,22.7777,143.53,143.45,107.48028648]
[1642418293850,22.7777,143.53,143.45,37.74028648]
[1642418295152,69.07816617,143.53,143.45,37.74028648]
[1642418296252,3.9764614,143.52,143.45,37.74028648]
[1642418301859,14.4315614,143.52,143.45,37.74028648]
[1642418302870,10.4551,143.52,143.45,37.74028648]
[1642418307166,10.4551,143.52,143.44,24.1735]
[1642418307468,10.12,143.51,143.39,24.0102]
[1642418307667,10.4576,143.49,143.4,24.4444]
[1642418308066,35.16705841,143.48,143.41,39.00840901]
[1642418308667,10.4576,143.49,143.41,39.00840901]
[1642418310271,23.8682,143.5,143.41,39.00840901]
[1642418310676,23.8682,143.5,143.42,23.9698]
[1642418311972,34.325,143.5,143.42,23.9698]
[1642418315677,23.8682,143.5,143.42,93.7098]
[1642418315879,28.95373244,143.54,143.42,93.7098]
[1642418316076,24.402,143.53,143.42,93.7098]
[1642418316680,24.402,143.53,143.42,103.8298]
[1642418319607,24.402,143.53,143.42,105.09959903]
[1642418319808,24.402,143.53,143.42,115.81299903]
[1642418320008,24.402,143.53,143.42,114.5432]
[1642418321109,34.8565,143.53,143.42,104.0898]
[1642418321311,25.95533733,143.52,143.42,104.0898]
[1642418323012,34.8565,143.53,143.42,104.0898]
[1642418328417,34.8565,143.53,143.42,103.8298]
[1642418329017,34.8565,143.53,143.42,114.2832]
[1642418329217,10.4545,143.53,143.42,90.5734]
[1642418329824,10.4545,143.53,143.44,69.74]
[1642418330020,10.4545,143.53,143.45,141.31839996]
[1642418330524,24.4956,143.54,143.45,141.31839996]
[1642418334023,34.9494,143.54,143.45,141.31839996]
[1642418337129,24.4956,143.54,143.45,141.31839996]
[1642418340834,20.573,143.55,143.45,141.31839996]
[1642418341036,10.453,143.55,143.45,141.31839996]
[1642418342536,33.1829,143.55,143.45,141.31839996]
[1642418345842,37.15359012,143.55,143.45,141.31839996]
[1642418353572,37.13354812,143.55,143.45,141.31839996]
[1642418354172,33.162858,143.55,143.45,141.31839996]
[1642418354874,3.97069012,143.55,143.45,151.76949996]
[1642418355077,3.97069012,143.55,143.47,69.74]
[1642418355285,3.97069012,143.55,143.48,10.12]
[1642418355476,3.97069012,143.55,143.48,11.38979903]
[1642418355678,3.97069012,143.55,143.49,37.8163819]
[1642418355879,3.97069012,143.55,143.49,59.91368093]
[1642418356076,3.97069012,143.58,143.5,1.26979903]
[1642418356278,3.97069012,143.58,143.51,10.12]
[1642418356479,3.97069012,143.58,143.52,40.20484678]
[1642418356777,3.97069012,143.58,143.53,10.12]
[1642418356977,3.97069012,143.58,143.53,16.377]
[1642418357677,3.97069012,143.58,143.53,10.12]
[1642418357879,46.64910985,143.62,143.53,10.12]
[1642418358179,3.97069012,143.62,143.54,23.1758]
[1642418359079,3.97069012,143.63,143.55,34.96934388]
[1642418359479,28.41016437,143.62,143.54,23.1758]
[1642418360379,28.41016437,143.62,143.55,46.13912076]
[1642418361181,10.4471,143.63,143.55,46.13912076]
[1642418363084,3.97069012,143.64,143.55,46.13912076]
[1642418363285,40.34109427,143.65,143.55,56.25912076]
[1642418363488,40.34109427,143.65,143.56,22.8365]
[1642418364188,36.37040415,143.65,143.56,22.8365]
[1642418365589,36.37040415,143.65,143.56,92.5765]
[1642418365788,25.92450415,143.65,143.56,92.5765]
[1642418365991,1.97733595,143.64,143.56,92.5765]
[1642418366888,25.90256231,143.64,143.56,22.8365]
[1642418367091,23.92522636,143.64,143.56,22.8365]
[1642418368893,25.90256231,143.64,143.56,22.8365]
[1642418369691,23.92522636,143.64,143.56,71.95551923]
[1642418371993,34.37172636,143.64,143.56,22.8365]
[1642418372194,34.37172636,143.64,143.53,10.12]
[1642418372593,34.37172636,143.64,143.5,34.0993]
[1642418372994,34.37172636,143.64,143.51,43.85338412]
[1642418373395,34.37172636,143.64,143.54,44.41038827]
[1642418373597,10.4465,143.64,143.55,24.7763]
[1642418374196,1.97733595,143.63,143.55,24.7763]
[1642418375297,56.59465118,143.64,143.55,24.7763]
[1642418378002,1.97733595,143.63,143.55,24.7763]
[1642418378802,56.59465118,143.64,143.55,24.7763]
[1642418379424,56.59465118,143.64,143.55,94.5163]
[1642418380624,12.42383595,143.64,143.55,94.5163]
[1642418383329,1.97733595,143.63,143.55,94.5163]
[1642418385329,1.97733595,143.63,143.55,24.7763]
[1642418385729,1.97733595,143.61,143.55,24.7763]
[1642418386930,35.55990641,143.62,143.55,24.7763]
[1642418386931,1.97733595,143.62,143.55,24.7763]
[1642418388029,1.97733595,143.61,143.55,24.7763]
[1642418390430,1.97733595,143.61,143.55,94.5163]
[1642418393132,1.97733595,143.61,143.55,94.7763]
[1642418394541,1.97733595,143.61,143.55,115.3404]
[1642418397544,24.6772,143.64,143.55,115.3404]
[1642418397545,1.97733595,143.62,143.55,115.3404]
[1642418397746,1.97733595,143.62,143.55,115.0804]
[1642418398145,1.97733595,143.62,143.55,104.6363]
[1642418399348,1.97733595,143.61,143.55,104.6363]
[1642418399745,1.97733595,143.61,143.55,104.8963]
[1642418400248,1.97733595,143.62,143.55,104.8963]
[1642418402546,1.97733595,143.62,143.55,104.6363]
[1642418402748,1.97733595,143.62,143.55,24.7763]
[1642418403350,1.97733595,143.61,143.55,24.7763]
[1642418404652,35.40668995,143.6,143.55,24.7763]
[1642418405050,37.3840259,143.6,143.55,24.7763]
[1642418405650,37.3840259,143.6,143.53,69.74]
[1642418406051,1.97733595,143.59,143.53,69.74]
[1642418406451,1.97733595,143.59,143.53,94.7237]
[1642418414699,1.97733595,143.59,143.49,33.2826]
[1642418414898,25.47143595,143.59,143.48,1.87298518]
[1642418415296,25.47143595,143.59,143.46,23.9493]
[1642418415297,10.12,143.58,143.47,1.87298518]
[1642418415496,23.5251,143.57,143.47,1.87298518]
[1642418415695,33.977,143.57,143.48,43.17691289]
[1642418416095,33.977,143.57,143.47,1.87298518]
[1642418416595,33.977,143.57,143.44,13.94887484]
[1642418416596,10.12,143.56,143.44,1.87298518]
[1642418416795,24.3885,143.55,143.44,1.87298518]
[1642418416995,10.12,143.54,143.44,1.87298518]
[1642418417195,58.62013463,143.53,143.44,1.87298518]
[1642418417596,58.62013463,143.53,143.43,69.40704615]
[1642418417998,69.07463463,143.53,143.43,69.40704615]
[1642418419600,69.07463463,143.53,143.44,24.6554]
[1642418420601,23.0138,143.53,143.44,94.3954]
[1642418421001,23.0138,143.53,143.44,24.6554]
[1642418421501,48.40901123,143.52,143.44,24.6554]
[1642418424100,48.40901123,143.52,143.44,94.3954]
[1642418424311,23.0138,143.53,143.44,94.3954]
[1642418425204,70.71733514,143.53,143.44,94.3954]
[1642418425705,20.71733514,143.53,143.44,94.3954]
[1642418426304,20.71733514,143.53,143.44,24.6554]
[1642418426704,10.4538,143.54,143.44,24.6554]
[1642418427107,24.0338,143.53,143.44,24.6554]
[1642418427507,24.0338,143.53,143.44,94.3954]
[1642418428008,60.4322484,143.53,143.44,24.6554]
[1642418432042,70.8867484,143.53,143.44,24.6554]
[1642418432244,70.8867484,143.53,143.43,44.58854615]
[1642418432443,70.8867484,143.53,143.4,81.73298518]
[1642418432743,70.8867484,143.53,143.41,94.6944]
[1642418433444,70.8867484,143.53,143.42,46.65872611]
[1642418433846,70.8867484,143.53,143.43,24.7271]
[1642418434043,81.0067484,143.53,143.43,24.7271]
[1642418436845,81.0067484,143.53,143.43,94.4671]
[1642418437946,81.0067484,143.53,143.43,24.7271]
[1642418444756,82.98408435,143.53,143.43,24.7271]
[1642418445659,46.58563595,143.53,143.43,24.7271]
[1642418445860,46.58563595,143.53,143.43,94.4671]
[1642418446359,46.58563595,143.53,143.43,24.7271]
[1642418446660,46.58563595,143.53,143.43,26.60008518]
[1642418447664,46.58563595,143.53,143.43,24.7271]
[1642418448462,1.97733595,143.52,143.43,24.7271]
[1642418448864,7.20097141,143.51,143.43,24.7271]
[1642418449565,1.97733595,143.52,143.43,24.7271]
[1642418455169,12.43273595,143.52,143.43,24.7271]
[1642418455567,23.071,143.51,143.43,24.7271]
[1642418455770,28.24093848,143.51,143.43,24.7271]
[1642418455967,23.071,143.51,143.43,24.7271]
[1642418463105,25.04833595,143.51,143.43,24.7271]
[1642418463702,23.071,143.51,143.43,24.7271]
[1642418465104,1.97733595,143.52,143.43,24.7271]
[1642418465506,1.97733595,143.52,143.44,69.74]
[1642418465705,1.97733595,143.52,143.45,39.59729468]
[1642418465904,1.97733595,143.52,143.46,23.3588]
[1642418466505,1.97733595,143.53,143.46,23.3588]
[1642418467607,13.14164991,143.53,143.46,23.3588]
[1642418467907,1.97733595,143.53,143.46,23.3588]
[1642418477018,12.09733595,143.53,143.43,118.13740836]
[1642418477223,23.6742,143.52,143.43,118.13740836]
[1642418477418,12.1400027,143.51,143.43,118.13740836]
[1642418477618,12.1400027,143.51,143.43,48.39740836]
[1642418477818,12.1400027,143.51,143.43,46.52442318]
[1642418478219,12.1400027,143.51,143.44,23.8342]
[1642418480221,25.65153595,143.52,143.44,23.8342]
[1642418481123,37.17627956,143.51,143.44,23.8342]
[1642418481920,47.29627956,143.51,143.42,1.87298518]
[1642418482120,117.03627956,143.51,143.42,1.87298518]
[1642418482621,1.97733595,143.5,143.4,1.87298518]
[1642418482819,35.01593595,143.5,143.4,1.87298518]
[1642418483422,10.458,143.48,143.4,25.64268518]
[1642418483724,17.30854502,143.48,143.4,25.64268518]
[1642418483922,17.30854502,143.48,143.4,23.7697]
[1642418484923,17.30854502,143.48,143.37,1.87298518]
[1642418485124,36.70314425,143.47,143.37,26.11478518]
[1642418485326,10.4602,143.45,143.37,1.87298518]
[1642418485623,10.12,143.44,143.37,1.87298518]
[1642418485828,37.17627956,143.43,143.37,1.87298518]
[1642418486025,37.17627956,143.43,143.36,0.25055922]
[1642418486231,108.65532381,143.43,143.36,0.25055922]
[1642418486624,10.12,143.42,143.36,0.25055922]
[1642418487124,10.4633,143.41,143.36,0.25055922]
[1642418488126,10.12,143.42,143.36,0.25055922]
[1642418491434,11.69003968,143.42,143.36,0.25055922]
[1642418491972,10.12,143.42,143.36,0.25055922]
[1642418492773,44.54600855,143.42,143.36,0.25055922]
[1642418492973,55.00850855,143.42,143.36,0.25055922]
[1642418495576,20.5825,143.42,143.36,0.25055922]
[1642418498076,46.17594425,143.42,143.36,0.25055922]
[1642418498277,115.91594425,143.42,143.36,0.25055922]
[1642418504784,46.17594425,143.42,143.36,0.25055922]
[1642418504982,44.4369,143.42,143.36,0.25055922]
[1642418511618,20.5825,143.42,143.36,0.25055922]
[1642418511818,10.12,143.42,143.36,0.25055922]
[1642418513222,10.12,143.42,143.34,23.0444]
[1642418515824,20.5825,143.42,143.34,23.0444]
[1642418517730,43.4066,143.42,143.32,1.87298518]
[1642418517928,10.4668,143.39,143.32,1.87298518]
[1642418518130,10.12,143.38,143.32,1.87298518]
[1642418518330,11.85904425,143.38,143.32,1.87298518]
[1642418518534,11.85904425,143.38,143.31,35.39335556]
[1642418518733,10.12,143.38,143.31,35.39335556]
[1642418518932,34.92143595,143.42,143.31,35.39335556]
[1642418519629,34.92143595,143.42,143.32,24.6639]
[1642418519630,37.54602731,143.41,143.32,24.6639]
[1642418519831,10.12,143.4,143.32,24.6639]
[1642418520233,33.2673,143.4,143.32,24.6639]
[1642418521834,43.7312,143.4,143.32,24.6639]
[1642418522434,10.12,143.4,143.32,24.6639]
[1642418523436,3.7163802,143.44,143.32,24.6639]
[1642418523636,12.09733595,143.44,143.32,30.3759]
[1642418523836,12.09733595,143.44,143.33,69.74]
[1642418524047,10.12,143.44,143.33,69.74]
[1642418524237,10.12,143.44,143.35,43.16798815]
[1642418524438,10.12,143.44,143.36,24.8636]
[1642418525440,20.5813,143.44,143.36,24.8636]
[1642418526141,20.5813,143.44,143.36,31.3456]
[1642418526743,10.12,143.44,143.36,31.3456]
[1642418527740,42.20754273,143.44,143.36,24.8636]
[1642418527950,10.12,143.44,143.36,24.8636]
[1642418528543,20.581,143.44,143.36,24.8636]
[1642418528944,58.29865413,143.44,143.36,24.8636]
[1642418534177,20.581,143.44,143.36,24.8636]
[1642418536580,10.10732951,143.43,143.36,24.8636]
[1642418536778,20.56922951,143.43,143.36,24.8636]
[1642418537178,30.68922951,143.43,143.36,24.8636]
[1642418542789,30.68922951,143.43,143.34,45.10560363]
[1642418542987,24.7725,143.42,143.34,45.10560363]
[1642418543288,10.4634,143.41,143.31,26.82568518]
[1642418544089,33.91949507,143.4,143.32,45.11477346]
[1642418544890,33.91949507,143.4,143.33,24.4375]
[1642418545690,10.4634,143.41,143.33,24.4375]
[1642418550599,20.5834,143.41,143.33,24.4375]
[1642418554601,1.5434012,143.39,143.33,24.4375]
[1642418554804,5.96330781,143.38,143.31,1.87298518]
[1642418555201,16.08330781,143.38,143.31,1.87298518]
[1642418555426,69.74,143.37,143.31,1.87298518]
[1642418555625,10.12,143.36,143.3,1.87298518]
[1642418555824,38.06351677,143.35,143.3,1.87298518]
[1642418556024,54.99231677,143.35,143.3,1.87298518]
[1642418556627,54.99231677,143.35,143.28,39.07467438]
[1642418557227,16.9288,143.35,143.28,39.07467438]
[1642418557431,10.4678,143.35,143.28,39.07467438]
[1642418558428,10.4678,143.35,143.27,0.25055922]
[1642418559429,10.4678,143.35,143.27,48.74678006]
[1642418561034,34.2974,143.36,143.27,48.74678006]
[1642418561733,34.2974,143.36,143.28,24.9797]
[1642418562435,44.7643,143.36,143.28,24.9797]
[1642418568341,20.5869,143.36,143.28,24.9797]
[1642418568741,10.3110443,143.35,143.28,24.9797]
[1642418570345,20.7787443,143.35,143.28,24.9797]
[1642418576676,10.4677,143.35,143.28,24.9797]
[1642418580884,10.4677,143.35,143.27,49.43530186]
[1642418581081,35.3734,143.35,143.27,49.43530186]
[1642418581885,35.3734,143.35,143.27,49.18474264]
[1642418582586,35.3734,143.35,143.28,23.8092]
[1642418587197,35.3734,143.35,143.26,1.87298518]
[1642418587198,11.85904425,143.34,143.26,1.87298518]
[1642418587396,10.4706,143.32,143.26,1.87298518]
[1642418587596,20.5906,143.32,143.26,1.87298518]
[1642418588199,25.29172929,143.32,143.26,1.87298518]
[1642418588402,25.29172929,143.32,143.24,47.02633066]
[1642418590097,20.5906,143.32,143.24,47.02633066]
[1642418592400,20.5906,143.32,143.22,24.91578518]
[1642418592601,23.1005,143.31,143.22,24.91578518]
[1642418592801,10.4715,143.3,143.22,24.91578518]
[1642418593026,10.4715,143.3,143.22,23.0428]
[1642418593531,10.4715,143.3,143.23,47.66235638]
[1642418597832,10.4715,143.3,143.22,23.0428]
[1642418598435,80.2115,143.3,143.22,23.0428]
[1642418598636,10.12,143.29,143.22,23.0428]
[1642418598834,10.4735,143.27,143.22,23.0428]
[1642418599233,10.4735,143.27,143.21,25.47678518]
[1642418599234,10.4735,143.27,143.21,1.87298518]
[1642418599636,10.4735,143.27,143.19,46.12402853]
[1642418600038,10.4735,143.27,143.2,24.6934]
[1642418601641,10.4735,143.27,143.19,44.25104335]
[1642418601841,20.5935,143.27,143.18,1.87298518]
[1642418602041,24.835,143.26,143.18,1.87298518]
[1642418602242,10.4768,143.24,143.18,1.87298518]
[1642418602441,10.12,143.23,143.18,1.87298518]
[1642418603045,10.12,143.23,143.17,44.82612876]
[1642418603444,10.12,143.23,143.16,24.9762]
[1642418603445,20.5968,143.23,143.16,24.9762]
[1642418604447,20.5968,143.23,143.17,42.77799271]
[1642418615351,20.5968,143.23,143.16,24.9762]
[1642418622289,10.4801,143.2,143.15,0.25055922]
[1642418622489,10.12,143.19,143.15,0.25055922]
[1642418622688,81.59904425,143.19,143.15,0.25055922]
[1642418622888,87.773,143.19,143.15,0.25055922]
[1642418623090,13.92549141,143.18,143.15,0.25055922]
[1642418623291,10.12,143.17,143.15,0.25055922]
[1642418623489,10.483,143.16,143.15,0.25055922]
[1642418623690,20.603,143.16,143.15,0.25055922]
[1642418624992,90.343,143.16,143.15,0.25055922]
[1642418629997,20.603,143.16,143.15,0.25055922]
[1642418630599,10.12,143.16,143.15,0.25055922]
[1642418635105,11.85904425,143.16,143.15,0.25055922]
[1642418635904,10.12,143.16,143.15,0.25055922]
[1642418643040,10.12,143.2,143.15,0.25055922]
[1642418644941,6.66308165,143.19,143.15,0.25055922]
[1642418645440,11.85904425,143.2,143.15,0.25055922]
[1642418647244,10.12,143.2,143.15,0.25055922]
[1642418647644,20.5985,143.2,143.15,0.25055922]
[1642418648044,10.12,143.2,143.15,8.32755922]
[1642418648444,3.4068858,143.24,143.15,8.32755922]
[1642418648644,3.4068858,143.24,143.16,22.9867]
[1642418648846,1.97733595,143.23,143.17,41.6200542]
[1642418650044,11.90544985,143.24,143.17,41.6200542]
[1642418650544,11.90544985,143.24,143.16,22.9867]
[1642418650747,1.73904425,143.23,143.16,22.9867]
[1642418651043,12.21574425,143.23,143.16,22.9867]
[1642418651443,12.21574425,143.23,143.16,71.466847]
[1642418652144,10.4767,143.23,143.16,71.466847]
[1642418655154,10.4767,143.23,143.21,0.25055922]
[1642418656152,12.21574425,143.23,143.21,0.25055922]
[1642418659156,22.33574425,143.23,143.21,0.25055922]
[1642418663559,2.70525603,143.22,143.21,0.25055922]
[1642418663959,39.39700028,143.22,143.21,0.25055922]
[1642418667362,38.6690802,143.22,143.21,0.25055922]
[1642418676073,36.69174425,143.22,143.21,0.25055922]
[1642418683577,34.9527,143.22,143.21,0.25055922]
[1642418685491,10.12,143.22,143.21,0.25055922]
[1642418685878,1.88131539,143.22,143.21,0.25055922]
[1642418686079,1.88131539,143.22,143.21,6.31485922]
[1642418687012,3.31086524,143.24,143.21,6.31485922]
[1642418688817,1.42954985,143.24,143.21,6.31485922]
[1642418689715,3.31086524,143.24,143.21,6.31485922]
[1642418690120,3.31086524,143.24,143.21,0.25055922]
[1642418690517,1.42954985,143.24,143.21,0.25055922]
[1642418691320,10.12,143.23,143.21,0.25055922]
[1642418692220,12.00131539,143.23,143.21,0.25055922]
[1642418692420,8.47101309,143.22,143.21,0.25055922]
[1642418692621,18.59101309,143.22,143.21,0.25055922]
[1642418693020,10.12,143.22,143.21,0.25055922]
[1642418693421,22.47861539,143.22,143.21,0.25055922]
[1642418696020,24.21765964,143.22,143.21,0.25055922]
[1642418696220,22.33634425,143.22,143.21,0.25055922]
[1642418698425,22.33634425,143.22,143.09,26.19488518]
[1642418698625,69.74,143.2,143.1,22.6924]
[1642418698826,10.4824,143.17,143.08,1.87298518]
[1642418699026,20.6024,143.17,143.08,1.87298518]
[1642418699325,10.38219774,143.15,143.08,1.87298518]
[1642418699529,1.73904425,143.16,143.08,1.87298518]
[1642418699724,32.6381,143.17,143.08,1.87298518]
[1642418699925,34.37714425,143.17,143.08,1.87298518]
[1642418700125,34.37714425,143.17,143.07,24.7589]
[1642418700526,10.483,143.14,143.07,24.7589]
[1642418705830,10.4817,143.16,143.07,24.7589]
[1642418706029,20.6017,143.16,143.07,24.7589]
[1642418709851,10.12,143.2,143.07,104.6189]
[1642418710049,20.5987,143.2,143.07,115.0986]
[1642418710249,20.5987,143.2,143.07,115.3586]
[1642418710650,20.5987,143.2,143.08,0.25]
[1642418710950,20.5987,143.2,143.07,104.8789]
[1642418711452,20.5987,143.2,143.09,10.4778]
[1642418711650,20.5987,143.2,143.11,43.97214168]
[1642418712453,20.5987,143.2,143.18,0.25146043]
[1642418714556,10.4787,143.2,143.18,0.25146043]
[1642418722591,12.32529585,143.2,143.18,0.25146043]
[1642418724192,10.12,143.19,143.18,0.25146043]
[1642418728096,11.55071346,143.19,143.18,0.25146043]
[1642418728598,13.39730931,143.19,143.18,0.25146043]
[1642418729399,11.55071346,143.19,143.18,0.25146043]
[1642418730002,1.43071346,143.19,143.18,0.25146043]
[1642418731605,1.43071346,143.19,143.18,6.31576043]
[1642418732004,1.84659585,143.21,143.18,6.31576043]
[1642418732209,1.84659585,143.21,143.18,50.87075743]
[1642418734309,1.84659585,143.21,143.18,6.31576043]
[1642418735713,1.84659585,143.22,143.18,6.31576043]
[1642418736310,1.84659585,143.22,143.18,43.65669206]
[1642418737812,1.84659585,143.22,143.18,6.31576043]
[1642418742352,1.84659585,143.23,143.18,6.31576043]
[1642418745758,12.32219585,143.24,143.18,6.31576043]
[1642418746558,12.32219585,143.24,143.18,30.13396043]
[1642418755098,1.84659585,143.23,143.18,30.13396043]
[1642418764505,1.84659585,143.22,143.18,30.13396043]
[1642418768607,1.84659585,143.21,143.18,30.13396043]
[1642418778651,1.84659585,143.21,143.18,6.31576043]
[1642418779253,1.84659585,143.21,143.18,0.25146043]
[1642418779752,1.84659585,143.2,143.18,0.25146043]
[1642418784361,34.89359585,143.2,143.18,0.25146043]
[1642418784559,1.73904425,143.19,143.18,0.25146043]
[1642418785759,43.5257,143.2,143.18,0.25146043]
[1642418787060,1.97287715,143.19,143.18,0.25146043]
[1642418799769,13.8319214,143.19,143.18,0.25146043]
[1642418800673,11.85904425,143.19,143.18,0.25146043]
[1642418803811,11.85904425,143.19,143.1,23.951]